Cogmind - Beta 13 @@@ ROGUE MODE // 2024.04.08 @ 21:52:30 Player: f_ Result: Self-destructed Performance ------------- Evolutions (3) 1500 Regions Visited (5) 1000 Robots Destroyed (0) 0 Value Destroyed (0) 0 Prototype IDs (1) 20 Alien Tech Used (0) 0 Bonus (834) 834 TOTAL SCORE: 3354 Bonus ------- Pacifist 834 Cogmind --------- Core Integrity 420/700 Matter 90/300 Energy 100/100 System Corruption 2% Temperature Cool (0) Movement Core (50) Location -7/Lower Caves Parts ------- > --- POWER (1) -------- (None) > --- PROPULSION (4) --- (None) > --- UTILITY (6) ------ System Shield > --- WEAPON (2) ------- (None) > --- INVENTORY (5) ---- Deuterium Engine Light Nuclear Core Peak State ------------ > --- POWER ------------ (None) > --- PROPULSION ------- VTOL Module Improved Cesium-ion Thruster > --- UTILITY ---------- Structural Scanner System Shield > --- WEAPON ----------- (None) > --- INVENTORY -------- Deuterium Engine [Rating: 11] Favorites ----------- Power None Propulsion VTOL Module Flight Unit VTOL Module Utility System Shield Device Structural Scanner Hackware System Shield Weapon Hammer Impact Weapon Hammer Build | -11 -10 -9 -8 -7 -7 ------- Run | Yrd Mat Mat Mat Fac Low Slots Evolved 6 | . . 2 2 2 . Power . | . . . . . . Propulsion 2 | . . . 2 . . Utility 4 | . . 2 . 2 . Weapon . | . . . . . . Parts Attached 7 | . 1 2 2 2 . Power . | . . . . . . Engine . | . . . . . . Core . | . . . . . . Reactor . | . . . . . . Propulsion 3 | . . 2 . 1 . Treads . | . . . . . . Leg . | . . . . . . Wheel . | . . . . . . Hover . | . . . . . . Flight 3 | . . 2 . 1 . Utility 3 | . . . 2 1 . Device 2 | . . . 2 . . Storage . | . . . . . . Processor . | . . . . . . Hackware 1 | . . . . 1 . Protection . | . . . . . . Artifact . | . . . . . . Weapon 1 | . 1 . . . . Energy Gun . | . . . . . . Energy Cannon . | . . . . . . Ballistic Gun . | . . . . . . Ballistic Cannon . | . . . . . . Launcher . | . . . . . . Special Weapon . | . . . . . . Impact Weapon 1 | . 1 . . . . Slashing Weapon . | . . . . . . Piercing Weapon . | . . . . . . Special Melee Weapon . | . . . . . . Unidentified Prototypes 1 | . . . . 1 . Parts Lost 6 | . . 1 2 . 3 Power . | . . . . . . Propulsion 3 | . . . 1 . 2 Utility 2 | . . . 1 . 1 Weapon 1 | . . 1 . . . Highest Loss Streak 2 | . . 1 2 . 2 To Critical Strikes . | . . . . . . Average Slot Usage (%) 17 | . 10 11 23 24 14 Flight 6 | . . 1 16 10 6 Device 2 | . . . 7 7 . Hackware 4 | . . . . 5 7 Impact Weapon 2 | . 10 9 . . . Naked Turns 24 | . 24 . . . . Heaviest Build 2 | . 2 2 2 1 1 Greatest Support 8 | 3 3 8 8 4 4 Greatest Overweight (x) . | . . . . . . Average Overweight (x) . | . . . . . . Largest Inventory Capacity 5 | 5 5 5 5 5 5 Average Capacity 5 | 5 5 5 5 5 5 Most Carried 2 | . . . . 2 2 Average Carried 1 | . . . . 1 2 Final Capacity 5 | 5 5 5 5 5 5 Final Carried 2 | . . . . 2 2 Class Distribution -------------------- 92% | Mutant 7% | Sprinter Dominant Class ---------------- Mutant | -10/Materials Mutant | -9/Materials Sprinter | -8/Materials Mutant | -7/Factory Mutant | -7/Lower Caves Resources | -11 -10 -9 -8 -7 -7 ----------- Run | Yrd Mat Mat Mat Fac Low Matter Collected 38 | 38 . . . . . Remotely . | . . . . . . Salvage Created . | . . . . . . Parts . | . . . . . . Haulers Intercepted . | . . . . . . Recyclers Shooed . | . . . . . . Parts Field Recycled . | . . . . . . Retrieved Matter . | . . . . . . Parts Self-Destructed . | . . . . . . Prevented . | . . . . . . Kills | -11 -10 -9 -8 -7 -7 ------- Run | Yrd Mat Mat Mat Fac Low Combat Hostiles Destroyed . | . . . . . . Classes Destroyed . | . . . . . . Best Kill Streak . | . . . . . . Combat Bots Only . | . . . . . . Max Kills in Single Turn . | . . . . . . Gunslinging . | . . . . . . Exploded . | . . . . . . Melee . | . . . . . . Uniques/NPCs Destroyed . | . . . . . . Combat | -11 -10 -9 -8 -7 -7 -------- Run | Yrd Mat Mat Mat Fac Low Hostile Shots Fired 175 | . 36 60 23 18 38 Missed 85 | . 15 27 13 13 17 Damage Taken 1043 | . 177 313 191 39 323 Core 772 | . 122 266 104 23 257 Absorbed by Shields . | . . . . . . Core Remaining (%) 66 | 100 51 33 81 . . Volleys Fired . | . . . . . . Largest . | . . . . . . Hottest . | . . . . . . Shots Fired . | . . . . . . Gun . | . . . . . . Cannon . | . . . . . . Launcher . | . . . . . . Special . | . . . . . . Kinetic . | . . . . . . Thermal . | . . . . . . Explosive . | . . . . . . Electromagnetic . | . . . . . . Robot Hit Streak . | . . . . . . Robot Miss Streak . | . . . . . . Penetration Max . | . . . . . . Secondary Targets . | . . . . . . Shots Hit Robots . | . . . . . . Core Hits . | . . . . . . Critical Kills . | . . . . . . Critical Parts Destroyed . | . . . . . . Critical Strikes . | . . . . . . Melee Attacks 9 | . 8 1 . . . Impact 9 | . 8 1 . . . Slashing . | . . . . . . Piercing . | . . . . . . Sneak Attacks . | . . . . . . Combat Hostiles . | . . . . . . Follow-up Attacks . | . . . . . . Damage Inflicted 24 | . . . 24 . . Guns . | . . . . . . Cannons . | . . . . . . Explosions . | . . . . . . Melee . | . . . . . . Ramming 24 | . . . 24 . . Kinetic . | . . . . . . Thermal . | . . . . . . Explosive . | . . . . . . Electromagnetic . | . . . . . . Impact . | . . . . . . Slashing . | . . . . . . Piercing . | . . . . . . Highest Corruption 2 | . 2 . . 2 2 Average Corruption 1 | . 1 . . 2 2 Corruption Purged . | . . . . . . Corruption Blocked . | . . . . . . Effects 4 | . 1 . . 1 2 Message Errors 1 | . 1 . . . . Matter Fused 2 | . . . . . 2 Data Loss (minor) 1 | . . . . 1 . Overload Shots . | . . . . . . Overflow Damage 2 | . . . 2 . . Projectiles . | . . . . . . Explosions . | . . . . . . Melee 2 | . . . 2 . . Knockbacks . | . . . . . . Impact . | . . . . . . Kinetic . | . . . . . . Secondary . | . . . . . . Self-Inflicted Damage 12 | . . . 12 . . Shots . | . . . . . . Rammed 1 | . . . 1 . . Targets Rammed 1 | . . . 1 . . Kicked . | . . . . . . Crushed . | . . . . . . Highest Temperature . | . . . . . . Average Temperature . | . . . . . . Received Heat Transfer 159 | . 9 66 36 12 36 Siege Activations . | . . . . . . Robots Corrupted . | . . . . . . Combat Hostiles . | . . . . . . Parts Fried . | . . . . . . Impact Corruptions 1 | . . . 1 . . Robots Melted . | . . . . . . Combat Hostiles . | . . . . . . Parts Melted . | . . . . . . Heat Transferred . | . . . . . . Parts Sabotaged . | . . . . . . Parts Stolen . | . . . . . . Parts Stripped . | . . . . . . Power Chain Reactions . | . . . . . . Alert | -11 -10 -9 -8 -7 -7 ------- Run | Yrd Mat Mat Mat Fac Low Peak Influence 142 | . 142 74 72 137 . Initial 59 | . . 59 26 18 . Average 58 | . 44 62 51 71 . Maximum Alert Level . | . . . . . . Low Security (%) 100 | 100 100 100 100 100 . Level 1 . | . . . . . . Level 2 . | . . . . . . Level 3 . | . . . . . . Level 4 . | . . . . . . Level 5 . | . . . . . . High Security . | . . . . . . Max Security . | . . . . . . Squads Dispatched 10 | . 2 1 4 3 . Investigation 6 | . 1 . 3 2 . Extermination . | . . . . . . Reinforcement 4 | . 1 1 1 1 . Assault . | . . . . . . Garrison . | . . . . . . Intercept . | . . . . . . Searches Triggered . | . . . . . . Construction Impeded . | . . . . . . Haulers Reinforced . | . . . . . . Active Scanning Responses . | . . . . . . Cargo Convoy Interrupts . | . . . . . . Stealth | -11 -10 -9 -8 -7 -7 --------- Run | Yrd Mat Mat Mat Fac Low Distress Signals 2 | . . 1 1 . . Communications Jammed . | . . . . . . Distress Signals . | . . . . . . Times Spotted 50 | . 10 13 15 4 8 Peak Tracking Total 14 | . 9 13 14 2 5 Tactical Retreats 6 | . 3 . . . 3 Traps | -11 -10 -9 -8 -7 -7 ------- Run | Yrd Mat Mat Mat Fac Low Traps Triggered 2 | . . . . 2 . Indirectly . | . . . . . . Trap Hack Attempts . | . . . . . . Triggered . | . . . . . . Disarmed . | . . . . . . Reprogrammed . | . . . . . . Reused . | . . . . . . Traps Extracted . | . . . . . . Installed . | . . . . . . Triggered . | . . . . . . Machines | -11 -10 -9 -8 -7 -7 ---------- Run | Yrd Mat Mat Mat Fac Low Machines Disabled . | . . . . . . Max in Single Turn . | . . . . . . Machines Repaired . | . . . . . . Machines Dismantled . | . . . . . . Machines Sabotaged . | . . . . . . Overloaded Fab Kills . | . . . . . . Hacking | -11 -10 -9 -8 -7 -7 --------- Run | Yrd Mat Mat Mat Fac Low Machines Accessed 10 | . 2 . 3 3 2 Terminals 6 | . 2 . 3 1 . Fabricators 1 | . . . . 1 . Repair Stations . | . . . . . . Recycling Units 1 | . . . . 1 . Scanalyzers . | . . . . . . Garrison Access . | . . . . . . Total Hacks 31 | . 6 . 12 6 7 Successful 18 | . 1 . 6 4 7 Failed 13 | . 5 . 6 2 . Catastrophic 7 | . 3 . 2 2 . Database Lockouts . | . . . . . . Manual 20 | . 6 . 12 2 . Terminals 20 | . 6 . 12 2 . Fabricators 2 | . . . . 2 . Repair Stations . | . . . . . . Recycling Units 2 | . . . . 2 . Scanalyzers . | . . . . . . Garrison Access . | . . . . . . Terminal Hacks 11 | . . . 4 . 7 Record 6 | . . . . . 6 Part Schematic 2 | . . . 2 . . Open Door 1 | . . . . . 1 Level Access Points 1 | . . . 1 . . Terminal Index 1 | . . . 1 . . Fabricator Hacks 2 | . . . . 2 . Load Schematic 1 | . . . . 1 . Build 1 | . . . . 1 . Repair Station Hacks . | . . . . . . Recycling Unit Hacks 1 | . . . . 1 . Retrieve Matter 1 | . . . . 1 . Scanalyzer . | . . . . . . Garrison Access Hacks . | . . . . . . Unauthorized Hacks 4 | . 1 . 2 1 . Terminals 4 | . 1 . 2 1 . Assimilate 1 | . . . 1 . . Botnet 3 | . 1 . 1 1 . Fabricators . | . . . . . . Repair Stations . | . . . . . . Recycling Units . | . . . . . . Scanalyzers . | . . . . . . Garrison Access . | . . . . . . Data Cores Recovered . | . . . . . . Used . | . . . . . . Hacking Detections 7 | . 2 . 3 2 . Full Trace Events 7 | . 2 . 3 2 . Feedback Events 2 | . 2 . . . . Corruption 2 | . 2 . . . . Feedback Blocked . | . . . . . . Robot Schematics Acquired . | . . . . . . Robots Built . | . . . . . . Authchips . | . . . . . . Time . | . . . . . . Total Robot Build Rating . | . . . . . . Part Schematics Acquired 2 | . . . 2 . . Parts Built . | . . . . . . Authchips . | . . . . . . Time 73 | . . . . 73 . Total Part Build Rating . | . . . . . . Parts Repaired . | . . . . . . Time . | . . . . . . Parts Recycled . | . . . . . . Recycled Matter . | . . . . . . Retrieved Matter . | . . . . . . Retrieved Components . | . . . . . . Parts Scanalyzed . | . . . . . . Part Schematics Acquired . | . . . . . . Parts Damaged . | . . . . . . Bothacking | -11 -10 -9 -8 -7 -7 ------------ Run | Yrd Mat Mat Mat Fac Low Used RIF Installer . | . . . . . . Robots Hacked . | . . . . . . Non-combat . | . . . . . . Combat . | . . . . . . Robot Hacks Applied . | . . . . . . Relay Couplers Released . | . . . . . . Fabnet Peak Effective % . | . . . . . . Robots Rewired . | . . . . . . Allies Hacked . | . . . . . . Hacks Repelled . | . . . . . . Allies | -11 -10 -9 -8 -7 -7 -------- Run | Yrd Mat Mat Mat Fac Low Total Allies 1 | . . . 1 . . Largest Group 1 | . . . 1 . . Highest-Rated Group 10 | . . . 10 . . Highest-Rated Ally 10 | . . . 10 . . Total Orders . | . . . . . . Ally Attacks . | . . . . . . Total Damage . | . . . . . . Kills . | . . . . . . Allies Corrupted . | . . . . . . Allies Melted . | . . . . . . Intel | -11 -10 -9 -8 -7 -7 ------- Run | Yrd Mat Mat Mat Fac Low Robot Analysis Total . | . . . . . . Derelict Logs Recovered 2 | . . . . . 2 Drone Launches . | . . . . . . Drone Recoveries . | . . . . . . Exploration | -11 -10 -9 -8 -7 -7 ------------- Run | Yrd Mat Mat Mat Fac Low Turns Passed 590 | 9 97 67 49 160 208 Spaces Moved 1284 | 18 146 126 138 439 417 Core 680 | 18 146 115 . . 401 Treads . | . . . . . . Legs . | . . . . . . Wheels . | . . . . . . Hover . | . . . . . . Flight 604 | . . 11 138 439 16 Fastest Speed 32 | 50 50 32 32 35 35 Average Speed 42 | 50 50 48 32 35 49 Slowest Speed 50 | 50 50 50 35 35 50 Overloaded Moves . | . . . . . . Propulsion Burnouts . | . . . . . . Robots Hopped 5 | . . . 3 2 . Cave-ins Triggered . | . . . . . . Exploration Rate (%) 27 | 2 45 23 17 15 61 Regions Visited 5 Branch Regions 1 Pre-discovered Areas 1 | . . . . . 1 Known Exits Taken 1 | . . . 1 . . Unknown Exits Taken 4 | 1 1 1 . 1 . Scrap Searched . | . . . . . . Spaces Dug 7 | . 7 . . . . Terrain Destroyed 7 | . 7 . . . . Melee 7 | . 7 . . . . Projectile . | . . . . . . AOE . | . . . . . . Terrain Rammed . | . . . . . . Walls Destroyed . | . . . . . . Machines Disabled . | . . . . . . Actions | -11 -10 -9 -8 -7 -7 --------- Run | Yrd Mat Mat Mat Fac Low Total 1296 | 17 154 128 138 441 418 Wait 3 | . . . 1 1 1 Move 1271 | 17 145 125 133 434 417 Hop 4 | . . . 2 2 . Pick Up 2 | . . . . 2 . Fast Attach 7 | . 1 2 2 2 . Attach . | . . . . . . Detach . | . . . . . . Swap . | . . . . . . Drop . | . . . . . . Fire . | . . . . . . Melee 9 | . 8 1 . . . Ram . | . . . . . . Kick . | . . . . . . Crush . | . . . . . . Escape Stasis . | . . . . . . Rewire . | . . . . . . Trap . | . . . . . . Miscellaneous . | . . . . . . Route ------- -11/Scrapyard -10/Materials -9/Materials -8/Materials (discovered 3 exits: *Fac x3) -7/Factory -7/Lower Caves History --------- Turn | Location | Event 4 | -11/Scrapyard | Discovered new exit (range 14) 10 | -11/Scrapyard | Entered Materials 103 | -10/Materials | Discovered new exit (range 7) 107 | -10/Materials | Entered another Materials area 107 | -9/Materials | Evolved 2 slots: Utility x2 160 | -9/Materials | Core integrity fell below 50% 172 | -9/Materials | Discovered new exit (range 7) 174 | -9/Materials | Entered another Materials area 174 | -8/Materials | Evolved 2 slots: Propulsion x2 192 | -8/Materials | Identified exit to Factory 223 | -8/Materials | Entered Factory 223 | -7/Factory | Evolved 2 slots: Utility x2 377 | -7/Factory | Discovered new exit (range 11) 383 | -7/Factory | Entered Lower Caves 446 | -7/Lower Caves | Learned Factory security intel 503 | -7/Lower Caves | Build established: Mutant 539 | -7/Lower Caves | Learned Extension trap positions 583 | -7/Lower Caves | Learned Factory terminal intel 591 | -7/Lower Caves | Self-destructed Last Messages --------------- compensate. >>Record "Event 572163470894" Only half of the most recent patrol to Cave 22 returned. Apparently even Sages aren't above a stroll through the caves now. >>Record "Event 622470794684" Unaware Researchers must be on a field trip today, last seen herding some prototypes towards the Deep. >>Record "Event 001198465732" Scouting mission reported back with intel. World map updated: -3/Research. >>Record "Event 008321654815" Scouting mission reported back with intel. Data stored: Research entrances (x1). >>Record "Event 003221933646" Scouting mission reported back with intel. Data stored: Extension trap records. 00542_ System corrupted: Matter fused (-6). 00563_ Faulty Imp. Cesium-ion Thruster destroyed. 00583_ Acquired derelict log, extracted data. Data stored: Factory terminal intel. Map ----- +----------------------------------------------------+ | ??????????# ########### ##?# #?????????# # | | ??????????## ##??????# ### #????????? # | | ???????????# #??????# ## ##???????? ? | | ???????????## ##?????## ## ###??????? "? | | ????????????#### #??????# ##??#### "?? | | ???????????????# #??????# #??# ??? | | ???????????????# ######### ## #??# ???? | | ???????????????# ###?##### #??# #???? | | ???????????????### #### #??#????# ## ##?# #???? | | ?????????????????# #??? ## ##???# ## ### #???? | | ????????????????## ##? ###?# ## #???? | | ???????????????## #? # #???? | | ???????????????# ## # ######## ##??? | | ???????????????## ####?? ####"""### #??? | | ????????????????## #?????###" X"## # #??? | | ???????????????### ##????##" "# ##?? | | ???????????????# #????#" ### # ### | | ?????????????#### #????# ### ## | | ?????????????# #????# ##?# X# | | ?????????????# """" #### #????# ### # | | ?????????????# """" #???####????# # | | ?????????????# """" #???????????## # | | ?????????????# #####?###????#"" ## | | ?????????????#### ## ##???##"""""### # | | ????????????????## #????####### ### | | ?????????????????# @ ##????????? ###?? | | ?????????????????## ##?????????### ##????? | | ??????????????????##########????????????###??????? | | ?????????????????????????????????????????????????? | | ?????????????????????????????????????????????????? | | ?????????????????????????????????????????????????? | | ?????????????????????????????????????????????????? | | ?????????????????????????????????????????????????? | | ?????????????????????????????????????????????????? | | ?????????????????????????????????????????????????? | | ?????????????????????????????????????????????????? | | ?????????????????????????????????????????????????? | | ?????????????????????????????????????????????????? | | ?????????????????????????????????????????????????? | | ?????????????????????????????????????????????????? | | ?????????????????????????????????????????????????? | | ?????????????????????????????????????????????????? | | ?????????????????????????????????????????????????? | | ?????????????????????????????????????????????????? | | ?????????????????????????????????????????????????? | | ?????????????????????????????????????????????????? | | ?????????????????????????????????????????????????? | | ?????????????????????????????????????????????????? | | ?????????????????????????????????????????????????? | | ?????????????????????????????????????????????????? | +----------------------------------------------------+ Best States ------------- Heat Dissipation 34 Energy Generation 5 Energy Capacity 100 Matter Stores 138 Matter Capacity 300 Sight Range 16 Terrain Scan Density 10 Evasion (%) 71 Defensive Hacking 10 Item Schematics ----------------- Hacking Suite | -8/Materials | Hacked System Shield | -8/Materials | Hacked Robot Schematics ------------------ None Fabricated ------------ Nothing Alien Tech Used ----------------- None Achievements -------------- None Challenges ------------ None Game ------ Seed BottomlessSystemCompressor Manual? 0 Play Time 00:16:31 Cumulative 172.6 hours Start 2024.04.08 @ 21:32:37 End 2024.04.08 @ 21:52:30 Sessions 1 Manual Loads 0 Difficulty Rogue Special Mode None Game No. 155 Rogue 150 Adventurer 0 Explorer 5 Win Type - Total 5 Types 2/0/1/2/0/0/0/0/0 Lore% 52 Gallery% 62 Achievement% 48 Wizard Run 0 Options --------- Layout 0 ASCII 0 Keyboard 0 Movement Mouse Keybinds 0 Fullscreen 2 Font 36/Terminus Map View 83x50 Zoom Use 0% Tactical HUD 1 Map Filters NONE Filters NONE Steam 1 RUN: 968787a1-42fa-477a-ace1-da04bc251858